[Event "Titled Tuesday Blitz March 21 Early 2023"]
[White "Vogel, Roven"]
[Black "Kosteniuk, Alexandra"]
[WhiteFideId "12908088"]
[BlackFideId "4128125"]
[WhiteElo "2518"]
[BlackElo "2453"]
[Result "1-0"]
[Round "09"]
[TimeControl "180+2"]
[Date "2023.03.21"]
[WhiteClock "0:01:38"]
[BlackClock "0:00:15"]

1. d4 {[%clk 0:03:00]}  f5 {[%clk 0:02:59]} 2. g3 {[%clk 0:02:59]}  Nf6 {[%clk 0:03:00]} 3. Bg2 {[%clk 0:03:00]}  g6 {[%clk 0:03:00]} 4. c3 {[%clk 0:03:00]}  Bg7 {[%clk 0:03:01]} 5. Qb3 {[%clk 0:03:01]}  Nc6 {[%clk 0:02:56]} 6. h4 {[%clk 0:03:01]}  e6 {[%clk 0:02:46]} 7. Nh3 {[%clk 0:03:02]}  d5 {[%clk 0:02:44]} 8. Nf4 {[%clk 0:03:01]}  Bf8 {[%clk 0:02:33]} 9. Nd2 {[%clk 0:02:59]}  Bd6 {[%clk 0:02:28]} 10. Nf3 {[%clk 0:02:59]}  Ne4 {[%clk 0:02:26]} 11. c4 {[%clk 0:02:51]}  Na5 {[%clk 0:02:19]} 12. Qa4+ {[%clk 0:02:48]}  c6 {[%clk 0:02:19]} 13. c5 {[%clk 0:02:36]}  Bc7 {[%clk 0:02:19]} 14. Nd3 {[%clk 0:02:35]}  b5 {[%clk 0:02:14]} 15. Qc2 {[%clk 0:02:35]}  Bd7 {[%clk 0:01:56]} 16. b3 {[%clk 0:02:35]}  Qe7 {[%clk 0:01:51]} 17. Bf4 {[%clk 0:02:33]}  Bd8 {[%clk 0:01:47]} 18. Nfe5 {[%clk 0:02:26]}  Nb7 {[%clk 0:01:44]} 19. f3 {[%clk 0:02:24]}  Nf6 {[%clk 0:01:40]} 20. Bg5 {[%clk 0:02:24]}  Qg7 {[%clk 0:01:37]} 21. Bd2 {[%clk 0:02:05]}  Nh5 {[%clk 0:01:28]} 22. g4 {[%clk 0:01:58]}  fxg4 {[%clk 0:01:20]} 23. fxg4 {[%clk 0:01:59]}  Ng3 {[%clk 0:01:18]} 24. Rh3 {[%clk 0:01:58]}  Ne4 {[%clk 0:01:19]} 25. Bxe4 {[%clk 0:01:56]}  dxe4 {[%clk 0:01:20]} 26. Nf2 {[%clk 0:01:56]}  Bf6 {[%clk 0:01:15]} 27. Bf4 {[%clk 0:01:53]}  O-O-O {[%clk 0:01:05]} 28. Nxe4 {[%clk 0:01:52]}  Be7 {[%clk 0:01:02]} 29. a4 {[%clk 0:01:51]}  Rhf8 {[%clk 0:01:00]} 30. Bh2 {[%clk 0:01:45]}  b4 {[%clk 0:00:50]} 31. a5 {[%clk 0:01:45]}  Rde8 {[%clk 0:00:40]} 32. Qc4 {[%clk 0:01:43]}  Qh6 {[%clk 0:00:29]} 33. g5 {[%clk 0:01:40]}  Qh5 {[%clk 0:00:28]} 34. Qa6 {[%clk 0:01:38]}  h6 {[%clk 0:00:15]} 35. Qxa7 {[%clk 0:01:38]} 1-0


[Site "https://www.chess.com"]

[Event "Titled Tuesday Blitz March 21 Early 2023"]
[White "Carlsen, Magnus"]
[Black "Movahed, Sina"]
[WhiteFideId "1503014"]
[BlackFideId "42520835"]
[WhiteElo "2852"]
[BlackElo "2225"]
[Result "1-0"]
[Round "09"]
[TimeControl "180+2"]
[Date "2023.03.21"]
[WhiteClock "0:00:13"]
[BlackClock "0:00:12"]

1. e4 {[%clk 0:02:58]}  c5 {[%clk 0:02:59]} 2. Nf3 {[%clk 0:02:56]}  d6 {[%clk 0:02:59]} 3. d4 {[%clk 0:02:56]}  cxd4 {[%clk 0:03:00]} 4. Nxd4 {[%clk 0:02:56]}  Nf6 {[%clk 0:03:00]} 5. Nc3 {[%clk 0:02:56]}  a6 {[%clk 0:03:01]} 6. Qf3 {[%clk 0:02:56]}  e6 {[%clk 0:02:58]} 7. Qg3 {[%clk 0:02:54]}  b5 {[%clk 0:02:54]} 8. a3 {[%clk 0:02:50]}  Bb7 {[%clk 0:02:52]} 9. f3 {[%clk 0:02:48]}  Nbd7 {[%clk 0:02:46]} 10. Be3 {[%clk 0:02:45]}  Rc8 {[%clk 0:02:44]} 11. Be2 {[%clk 0:02:38]}  h5 {[%clk 0:02:33]} 12. O-O {[%clk 0:02:31]}  h4 {[%clk 0:02:32]} 13. Qf2 {[%clk 0:02:31]}  h3 {[%clk 0:02:30]} 14. g3 {[%clk 0:02:31]}  Be7 {[%clk 0:02:21]} 15. Rfd1 {[%clk 0:02:28]}  Ne5 {[%clk 0:02:15]} 16. Nb3 {[%clk 0:02:16]}  Qc7 {[%clk 0:02:10]} 17. Bb6 {[%clk 0:02:15]}  Qb8 {[%clk 0:02:08]} 18. Ba7 {[%clk 0:02:14]}  Qc7 {[%clk 0:02:07]} 19. Bb6 {[%clk 0:02:14]}  Qb8 {[%clk 0:02:06]} 20. Na5 {[%clk 0:02:14]}  Ba8 {[%clk 0:01:57]} 21. Bd4 {[%clk 0:02:10]}  Qc7 {[%clk 0:01:55]} 22. Nb3 {[%clk 0:02:08]}  g5 {[%clk 0:01:43]} 23. Rd2 {[%clk 0:01:59]}  g4 {[%clk 0:01:39]} 24. f4 {[%clk 0:01:59]}  Nc4 {[%clk 0:01:38]} 25. Bxc4 {[%clk 0:01:57]}  bxc4 {[%clk 0:01:39]} 26. Bxf6 {[%clk 0:01:45]}  Bxf6 {[%clk 0:01:38]} 27. Nd4 {[%clk 0:01:45]}  Qb7 {[%clk 0:01:38]} 28. Rb1 {[%clk 0:01:43]}  Rh5 {[%clk 0:01:29]} 29. Kf1 {[%clk 0:01:39]}  Qb6 {[%clk 0:01:09]} 30. Qe3 {[%clk 0:01:23]}  e5 {[%clk 0:00:56]} 31. fxe5 {[%clk 0:00:43]}  dxe5 {[%clk 0:00:53]} 32. Nd5 {[%clk 0:00:31]}  exd4 {[%clk 0:00:44]} 33. Qe2 {[%clk 0:00:26]}  Bxd5 {[%clk 0:00:39]} 34. exd5+ {[%clk 0:00:23]}  Re5 {[%clk 0:00:39]} 35. Qxg4 {[%clk 0:00:23]}  Kf8 {[%clk 0:00:38]} 36. Qxc8+ {[%clk 0:00:22]}  Re8 {[%clk 0:00:36]} 37. Qxc4 {[%clk 0:00:17]}  Bg5 {[%clk 0:00:23]} 38. Qxd4 {[%clk 0:00:13]}  Qg6 {[%clk 0:00:20]} 39. Qh8+ {[%clk 0:00:13]}  Qg8 {[%clk 0:00:13]} 40. Qxg8+ {[%clk 0:00:13]}  Kxg8 {[%clk 0:00:14]} 41. Re2 {[%clk 0:00:13]}  Rd8 {[%clk 0:00:15]} 42. Rd1 {[%clk 0:00:13]}  Kg7 {[%clk 0:00:15]} 43. c4 {[%clk 0:00:14]}  Kg6 {[%clk 0:00:15]} 44. c5 {[%clk 0:00:14]}  f5 {[%clk 0:00:14]} 45. d6 {[%clk 0:00:15]}  f4 {[%clk 0:00:15]} 46. c6 {[%clk 0:00:15]}  Rf8 {[%clk 0:00:12]} 47. gxf4 {[%clk 0:00:14]}  Rxf4+ {[%clk 0:00:13]} 48. Rf2 {[%clk 0:00:14]}  Rc4 {[%clk 0:00:13]} 49. c7 {[%clk 0:00:14]}  Bh4 {[%clk 0:00:12]} 50. Rf3 {[%clk 0:00:13]} 1-0


[Site "https://www.chess.com"]

[Event "Titled Tuesday Blitz March 21 Early 2023"]
[White "Ozen, Bahadir"]
[Black "Deac, Bogdan-Daniel"]
[WhiteFideId "6337058"]
[BlackFideId "1226380"]
[WhiteElo "2503"]
[BlackElo "2649"]
[Result "0-1"]
[Round "09"]
[TimeControl "180+2"]
[Date "2023.03.21"]
[WhiteClock "0:00:16"]
[BlackClock "0:00:06"]

1. d4 {[%clk 0:03:00]}  Nf6 {[%clk 0:02:59]} 2. Nf3 {[%clk 0:03:01]}  d5 {[%clk 0:02:58]} 3. c4 {[%clk 0:03:01]}  e6 {[%clk 0:02:58]} 4. Nc3 {[%clk 0:03:00]}  a6 {[%clk 0:02:58]} 5. cxd5 {[%clk 0:02:53]}  exd5 {[%clk 0:02:59]} 6. Bg5 {[%clk 0:02:51]}  Be6 {[%clk 0:02:58]} 7. e3 {[%clk 0:02:48]}  Nbd7 {[%clk 0:02:58]} 8. Bd3 {[%clk 0:02:46]}  Bd6 {[%clk 0:02:59]} 9. O-O {[%clk 0:02:31]}  c6 {[%clk 0:02:58]} 10. Qc2 {[%clk 0:02:21]}  Qb8 {[%clk 0:02:57]} 11. Bf5 {[%clk 0:02:13]}  O-O {[%clk 0:02:53]} 12. Bh4 {[%clk 0:02:10]}  Re8 {[%clk 0:02:52]} 13. Rfe1 {[%clk 0:02:02]}  Qc7 {[%clk 0:02:46]} 14. Rab1 {[%clk 0:02:00]}  Bxf5 {[%clk 0:02:38]} 15. Qxf5 {[%clk 0:02:01]}  Ne4 {[%clk 0:02:39]} 16. Bg3 {[%clk 0:01:57]}  Ndf6 {[%clk 0:02:27]} 17. Bxd6 {[%clk 0:01:42]}  Nxd6 {[%clk 0:02:24]} 18. Qf4 {[%clk 0:01:41]}  Nfe4 {[%clk 0:02:23]} 19. Rbc1 {[%clk 0:01:38]}  Qd8 {[%clk 0:02:18]} 20. Ne5 {[%clk 0:01:34]}  Ng5 {[%clk 0:01:41]} 21. b3 {[%clk 0:01:29]}  h5 {[%clk 0:01:32]} 22. f3 {[%clk 0:01:25]}  Ne6 {[%clk 0:01:17]} 23. Qg3 {[%clk 0:01:25]}  h4 {[%clk 0:01:17]} 24. Qg4 {[%clk 0:01:03]}  f5 {[%clk 0:01:11]} 25. Qg6 {[%clk 0:01:01]}  f4 {[%clk 0:00:20]} 26. Rcd1 {[%clk 0:00:49]}  fxe3 {[%clk 0:00:17]} 27. Rxe3 {[%clk 0:00:49]}  Nf4 {[%clk 0:00:18]} 28. Qg4 {[%clk 0:00:49]}  Qf6 {[%clk 0:00:15]} 29. Rde1 {[%clk 0:00:43]}  h3 {[%clk 0:00:14]} 30. Nd7 {[%clk 0:00:40]}  Qxd4 {[%clk 0:00:11]} 31. Kf2 {[%clk 0:00:24]}  Rxe3 {[%clk 0:00:07]} 32. Rxe3 {[%clk 0:00:25]}  Qd2+ {[%clk 0:00:08]} 33. Kg3 {[%clk 0:00:24]}  Qxe3 {[%clk 0:00:07]} 34. Nf6+ {[%clk 0:00:25]}  Kf7 {[%clk 0:00:07]} 35. Qd7+ {[%clk 0:00:19]}  Kxf6 {[%clk 0:00:07]} 36. Qxd6+ {[%clk 0:00:20]}  Ne6 {[%clk 0:00:08]} 37. gxh3 {[%clk 0:00:16]}  Qg1+ {[%clk 0:00:06]} 0-1


[Site "https://www.chess.com"]

[Event "Titled Tuesday Blitz March 21 Early 2023"]
[White "Harsha Bharathakoti"]
[Black "Kramnik, Vladimir"]
[WhiteFideId "5078776"]
[BlackFideId "4101588"]
[WhiteElo "2481"]
[BlackElo "2712"]
[Result "1-0"]
[Round "09"]
[TimeControl "180+2"]
[Date "2023.03.21"]
[WhiteClock "0:00:02"]
[BlackClock "0:00:03"]

1. d4 {[%clk 0:03:00]}  d5 {[%clk 0:02:59]} 2. c4 {[%clk 0:02:59]}  c6 {[%clk 0:02:59]} 3. Nf3 {[%clk 0:02:58]}  Nf6 {[%clk 0:02:59]} 4. e3 {[%clk 0:02:59]}  Bf5 {[%clk 0:02:58]} 5. Nc3 {[%clk 0:02:58]}  e6 {[%clk 0:02:58]} 6. Nh4 {[%clk 0:02:59]}  Be4 {[%clk 0:02:58]} 7. f3 {[%clk 0:02:59]}  Bg6 {[%clk 0:02:59]} 8. Qb3 {[%clk 0:02:59]}  Qb6 {[%clk 0:02:55]} 9. Nxg6 {[%clk 0:02:45]}  hxg6 {[%clk 0:02:55]} 10. Bd2 {[%clk 0:02:09]}  Nbd7 {[%clk 0:02:55]} 11. O-O-O {[%clk 0:02:06]}  Qxb3 {[%clk 0:02:54]} 12. axb3 {[%clk 0:02:06]}  O-O-O {[%clk 0:02:55]} 13. Be2 {[%clk 0:01:37]}  c5 {[%clk 0:02:44]} 14. cxd5 {[%clk 0:01:25]}  exd5 {[%clk 0:02:44]} 15. h3 {[%clk 0:00:54]}  a6 {[%clk 0:02:35]} 16. Be1 {[%clk 0:00:44]}  cxd4 {[%clk 0:02:32]} 17. exd4 {[%clk 0:00:45]}  Bd6 {[%clk 0:02:30]} 18. Bf2 {[%clk 0:00:33]}  Nb8 {[%clk 0:02:27]} 19. g3 {[%clk 0:00:28]}  g5 {[%clk 0:02:18]} 20. Rde1 {[%clk 0:00:21]}  Nc6 {[%clk 0:02:17]} 21. Kd2 {[%clk 0:00:21]}  Bc7 {[%clk 0:01:58]} 22. Bd3 {[%clk 0:00:10]}  g6 {[%clk 0:01:57]} 23. Rc1 {[%clk 0:00:05]}  Kb8 {[%clk 0:01:53]} 24. Ne2 {[%clk 0:00:05]}  Ba5+ {[%clk 0:01:48]} 25. Kd1 {[%clk 0:00:06]}  Nb4 {[%clk 0:01:47]} 26. Bb1 {[%clk 0:00:06]}  Rhe8 {[%clk 0:01:40]} 27. Rf1 {[%clk 0:00:01]}  Re6 {[%clk 0:01:33]} 28. Be1 {[%clk 0:00:02]}  Rde8 {[%clk 0:01:28]} 29. Rf2 {[%clk 0:00:03]}  Re3 {[%clk 0:01:12]} 30. Bd2 {[%clk 0:00:03]}  Rxb3 {[%clk 0:01:06]} 31. Bxg5 {[%clk 0:00:03]}  Nd7 {[%clk 0:00:45]} 32. Bf4+ {[%clk 0:00:03]}  Ka7 {[%clk 0:00:45]} 33. Nc3 {[%clk 0:00:04]}  Nc6 {[%clk 0:00:41]} 34. Ba2 {[%clk 0:00:04]}  Rb4 {[%clk 0:00:39]} 35. Nxd5 {[%clk 0:00:05]}  Rxd4+ {[%clk 0:00:38]} 36. Kc2 {[%clk 0:00:05]}  Rxd5 {[%clk 0:00:37]} 37. Bxd5 {[%clk 0:00:06]}  Nb4+ {[%clk 0:00:37]} 38. Kb1 {[%clk 0:00:06]}  Nxd5 {[%clk 0:00:38]} 39. Rd1 {[%clk 0:00:07]}  N7b6 {[%clk 0:00:33]} 40. Bc1 {[%clk 0:00:07]}  Bb4 {[%clk 0:00:31]} 41. h4 {[%clk 0:00:07]}  a5 {[%clk 0:00:26]} 42. g4 {[%clk 0:00:08]}  Rh8 {[%clk 0:00:25]} 43. Rh1 {[%clk 0:00:07]}  Nf6 {[%clk 0:00:23]} 44. Be3 {[%clk 0:00:05]}  Ka6 {[%clk 0:00:22]} 45. Bd4 {[%clk 0:00:06]}  Nbd5 {[%clk 0:00:15]} 46. g5 {[%clk 0:00:06]}  Re8 {[%clk 0:00:15]} 47. gxf6 {[%clk 0:00:05]}  Re6 {[%clk 0:00:13]} 48. h5 {[%clk 0:00:05]}  gxh5 {[%clk 0:00:12]} 49. Rxh5 {[%clk 0:00:05]}  Re1+ {[%clk 0:00:12]} 50. Kc2 {[%clk 0:00:05]}  Nf4 {[%clk 0:00:12]} 51. Rf5 {[%clk 0:00:05]}  Ne6 {[%clk 0:00:12]} 52. Bc3 {[%clk 0:00:05]}  Bc5 {[%clk 0:00:12]} 53. Rd2 {[%clk 0:00:04]}  Rf1 {[%clk 0:00:10]} 54. Rd7 {[%clk 0:00:04]}  Rf2+ {[%clk 0:00:09]} 55. Kd1 {[%clk 0:00:04]}  b5 {[%clk 0:00:08]} 56. Rxf7 {[%clk 0:00:05]}  b4 {[%clk 0:00:09]} 57. Re7 {[%clk 0:00:02]}  Bxe7 {[%clk 0:00:08]} 58. fxe7 {[%clk 0:00:03]}  Nc7 {[%clk 0:00:08]} 59. Be5 {[%clk 0:00:02]}  Ne8 {[%clk 0:00:08]} 60. Rf7 {[%clk 0:00:03]}  a4 {[%clk 0:00:05]} 61. Rf8 {[%clk 0:00:03]}  a3 {[%clk 0:00:03]} 62. Rxe8 {[%clk 0:00:02]} 1-0


[Site "https://www.chess.com"]

[Event "Titled Tuesday Blitz March 21 Early 2023"]
[White "Idani, Pouya"]
[Black "Navara, David"]
[WhiteFideId "12510130"]
[BlackFideId "309095"]
[WhiteElo "2574"]
[BlackElo "2675"]
[Result "0-1"]
[Round "09"]
[TimeControl "180+2"]
[Date "2023.03.21"]
[WhiteClock "0:00:03"]
[BlackClock "0:00:30"]

1. e4 {[%clk 0:02:51]}  c6 {[%clk 0:03:00]} 2. d4 {[%clk 0:02:50]}  d5 {[%clk 0:03:01]} 3. e5 {[%clk 0:02:50]}  c5 {[%clk 0:03:01]} 4. Nf3 {[%clk 0:02:50]}  cxd4 {[%clk 0:03:00]} 5. Nxd4 {[%clk 0:02:49]}  Nc6 {[%clk 0:03:01]} 6. Nxc6 {[%clk 0:02:50]}  bxc6 {[%clk 0:03:02]} 7. Bd3 {[%clk 0:02:50]}  e6 {[%clk 0:02:54]} 8. O-O {[%clk 0:02:44]}  Qc7 {[%clk 0:02:51]} 9. f4 {[%clk 0:01:57]}  Bc5+ {[%clk 0:02:42]} 10. Kh1 {[%clk 0:01:47]}  Ne7 {[%clk 0:02:43]} 11. Nd2 {[%clk 0:01:43]}  a5 {[%clk 0:02:39]} 12. c4 {[%clk 0:01:37]}  Ba6 {[%clk 0:02:34]} 13. Qc2 {[%clk 0:01:37]}  h6 {[%clk 0:02:22]} 14. Nb3 {[%clk 0:01:30]}  Bb6 {[%clk 0:02:15]} 15. c5 {[%clk 0:01:19]}  Bxd3 {[%clk 0:02:00]} 16. Qxd3 {[%clk 0:01:20]}  Ba7 {[%clk 0:02:00]} 17. Be3 {[%clk 0:01:17]}  Nf5 {[%clk 0:01:57]} 18. Bf2 {[%clk 0:01:05]}  h5 {[%clk 0:01:47]} 19. Nd4 {[%clk 0:01:03]}  g6 {[%clk 0:01:38]} 20. b3 {[%clk 0:00:52]}  h4 {[%clk 0:01:32]} 21. Rfc1 {[%clk 0:00:47]}  Kd7 {[%clk 0:01:29]} 22. a3 {[%clk 0:00:46]}  Qb7 {[%clk 0:01:24]} 23. Rab1 {[%clk 0:00:45]}  h3 {[%clk 0:01:10]} 24. g3 {[%clk 0:00:42]}  Nxd4 {[%clk 0:01:09]} 25. Bxd4 {[%clk 0:00:42]}  Qb5 {[%clk 0:01:09]} 26. Qxb5 {[%clk 0:00:41]}  cxb5 {[%clk 0:01:10]} 27. b4 {[%clk 0:00:42]}  Kc6 {[%clk 0:01:09]} 28. Kg1 {[%clk 0:00:38]}  Rhb8 {[%clk 0:01:04]} 29. Kf1 {[%clk 0:00:31]}  Rb7 {[%clk 0:01:04]} 30. bxa5 {[%clk 0:00:29]}  Bb8 {[%clk 0:01:03]} 31. Bc3 {[%clk 0:00:30]}  Bc7 {[%clk 0:01:03]} 32. Bb4 {[%clk 0:00:17]}  Bxa5 {[%clk 0:01:03]} 33. Rb2 {[%clk 0:00:18]}  Bxb4 {[%clk 0:01:00]} 34. axb4 {[%clk 0:00:19]}  Ra3 {[%clk 0:01:00]} 35. Ke2 {[%clk 0:00:17]}  Rba7 {[%clk 0:01:00]} 36. Rcc2 {[%clk 0:00:17]}  R7a4 {[%clk 0:00:58]} 37. Rb1 {[%clk 0:00:08]}  Ra2 {[%clk 0:00:55]} 38. Rbb2 {[%clk 0:00:08]}  Ra1 {[%clk 0:00:55]} 39. Kf3 {[%clk 0:00:08]}  d4 {[%clk 0:00:46]} 40. Rd2 {[%clk 0:00:06]}  Kd5 {[%clk 0:00:45]} 41. Kg4 {[%clk 0:00:02]}  Rc1 {[%clk 0:00:45]} 42. Kxh3 {[%clk 0:00:02]}  Rc4 {[%clk 0:00:43]} 43. Kg4 {[%clk 0:00:02]}  Raxb4 {[%clk 0:00:41]} 44. Rxb4 {[%clk 0:00:03]}  Rxb4 {[%clk 0:00:42]} 45. Kg5 {[%clk 0:00:03]}  Ra4 {[%clk 0:00:40]} 46. Kf6 {[%clk 0:00:04]}  Ra7 {[%clk 0:00:41]} 47. g4 {[%clk 0:00:03]}  Kxc5 {[%clk 0:00:40]} 48. h4 {[%clk 0:00:03]}  b4 {[%clk 0:00:37]} 49. h5 {[%clk 0:00:04]}  gxh5 {[%clk 0:00:38]} 50. gxh5 {[%clk 0:00:05]}  b3 {[%clk 0:00:39]} 51. h6 {[%clk 0:00:05]}  Kc4 {[%clk 0:00:38]} 52. h7 {[%clk 0:00:04]}  Ra8 {[%clk 0:00:39]} 53. Kg7 {[%clk 0:00:03]}  Kc3 {[%clk 0:00:38]} 54. Rd1 {[%clk 0:00:03]}  b2 {[%clk 0:00:37]} 55. Kxf7 {[%clk 0:00:03]}  Kc2 {[%clk 0:00:35]} 56. Rg1 {[%clk 0:00:04]}  b1=Q {[%clk 0:00:33]} 57. Rxb1 {[%clk 0:00:04]}  Kxb1 {[%clk 0:00:33]} 58. f5 {[%clk 0:00:05]}  d3 {[%clk 0:00:30]} 59. fxe6 {[%clk 0:00:04]}  d2 {[%clk 0:00:30]} 60. e7 {[%clk 0:00:04]}  d1=Q {[%clk 0:00:31]} 61. e8=Q {[%clk 0:00:03]}  Qh5+ {[%clk 0:00:30]} 62. Kg7 {[%clk 0:00:03]}  Rxe8 {[%clk 0:00:30]} 0-1


[Site "https://www.chess.com"]

[Event "Titled Tuesday Blitz March 21 Early 2023"]
[White "Bachmann, Axel"]
[Black "Postny, Evgeny"]
[WhiteFideId "3700488"]
[BlackFideId "2804344"]
[WhiteElo "2605"]
[BlackElo "2509"]
[Result "1-0"]
[Round "09"]
[TimeControl "180+2"]
[Date "2023.03.21"]
[WhiteClock "0:00:06"]
[BlackClock "0:00:01"]

1. e4 {[%clk 0:03:00]}  c5 {[%clk 0:02:57]} 2. Nf3 {[%clk 0:02:59]}  e6 {[%clk 0:02:57]} 3. g3 {[%clk 0:02:58]}  Nf6 {[%clk 0:02:56]} 4. Qe2 {[%clk 0:02:58]}  d5 {[%clk 0:02:53]} 5. exd5 {[%clk 0:02:58]}  Nxd5 {[%clk 0:02:53]} 6. Bg2 {[%clk 0:02:58]}  Nc6 {[%clk 0:02:53]} 7. O-O {[%clk 0:02:56]}  Be7 {[%clk 0:02:53]} 8. Rd1 {[%clk 0:02:54]}  Bf6 {[%clk 0:02:52]} 9. Nc3 {[%clk 0:02:53]}  O-O {[%clk 0:02:50]} 10. Ne4 {[%clk 0:02:51]}  Be7 {[%clk 0:02:47]} 11. d4 {[%clk 0:02:50]}  cxd4 {[%clk 0:02:46]} 12. Nxd4 {[%clk 0:02:51]}  Nxd4 {[%clk 0:02:44]} 13. Rxd4 {[%clk 0:02:52]}  Qb6 {[%clk 0:02:43]} 14. Rd1 {[%clk 0:02:48]}  Re8 {[%clk 0:02:20]} 15. c4 {[%clk 0:02:46]}  Nf6 {[%clk 0:02:21]} 16. Be3 {[%clk 0:02:20]}  Qc7 {[%clk 0:02:20]} 17. Bf4 {[%clk 0:02:16]}  e5 {[%clk 0:02:17]} 18. Be3 {[%clk 0:02:07]}  Be6 {[%clk 0:02:11]} 19. b3 {[%clk 0:01:58]}  Rad8 {[%clk 0:02:10]} 20. Nxf6+ {[%clk 0:01:46]}  Bxf6 {[%clk 0:02:10]} 21. Be4 {[%clk 0:01:46]}  b6 {[%clk 0:02:01]} 22. Rxd8 {[%clk 0:01:35]}  Rxd8 {[%clk 0:02:00]} 23. Rd1 {[%clk 0:01:36]}  Rxd1+ {[%clk 0:01:57]} 24. Qxd1 {[%clk 0:01:37]}  Qd8 {[%clk 0:01:56]} 25. Qc2 {[%clk 0:01:35]}  g6 {[%clk 0:01:55]} 26. c5 {[%clk 0:01:36]}  bxc5 {[%clk 0:01:53]} 27. Bxc5 {[%clk 0:01:30]}  Bh3 {[%clk 0:01:31]} 28. b4 {[%clk 0:01:19]}  Qc7 {[%clk 0:01:14]} 29. Qa4 {[%clk 0:01:05]}  Qd8 {[%clk 0:01:05]} 30. Qc2 {[%clk 0:00:44]}  Qd7 {[%clk 0:01:04]} 31. a4 {[%clk 0:00:34]}  Kg7 {[%clk 0:00:59]} 32. a5 {[%clk 0:00:32]}  h5 {[%clk 0:00:53]} 33. Qd3 {[%clk 0:00:26]}  Qa4 {[%clk 0:00:50]} 34. Bg2 {[%clk 0:00:26]}  Bf5 {[%clk 0:00:42]} 35. Qf1 {[%clk 0:00:17]}  e4 {[%clk 0:00:39]} 36. Bxa7 {[%clk 0:00:15]}  Qxb4 {[%clk 0:00:37]} 37. a6 {[%clk 0:00:15]}  Bd4 {[%clk 0:00:37]} 38. Bxd4+ {[%clk 0:00:12]}  Qxd4 {[%clk 0:00:37]} 39. h4 {[%clk 0:00:12]}  e3 {[%clk 0:00:34]} 40. fxe3 {[%clk 0:00:13]}  Qxe3+ {[%clk 0:00:35]} 41. Qf2 {[%clk 0:00:14]}  Qc1+ {[%clk 0:00:32]} 42. Kh2 {[%clk 0:00:14]}  Qc4 {[%clk 0:00:06]} 43. a7 {[%clk 0:00:13]}  Be4 {[%clk 0:00:06]} 44. Qf4 {[%clk 0:00:11]}  Qa4 {[%clk 0:00:05]} 45. Qe5+ {[%clk 0:00:11]}  Kh7 {[%clk 0:00:04]} 46. Qe7 {[%clk 0:00:05]}  Bxg2 {[%clk 0:00:03]} 47. Qxf7+ {[%clk 0:00:05]}  Kh6 {[%clk 0:00:03]} 48. Qf8+ {[%clk 0:00:05]}  Kh7 {[%clk 0:00:03]} 49. Qe7+ {[%clk 0:00:04]}  Kh6 {[%clk 0:00:03]} 50. Kxg2 {[%clk 0:00:04]}  Qa2+ {[%clk 0:00:03]} 51. Kf3 {[%clk 0:00:04]}  Qd5+ {[%clk 0:00:02]} 52. Ke3 {[%clk 0:00:05]}  Qb3+ {[%clk 0:00:02]} 53. Kf4 {[%clk 0:00:05]}  Qc4+ {[%clk 0:00:01]} 54. Ke5 {[%clk 0:00:05]}  Qb5+ {[%clk 0:00:02]} 55. Kf6 {[%clk 0:00:05]}  Qb2+ {[%clk 0:00:01]} 56. Kf7 {[%clk 0:00:06]}  Qb3+ {[%clk 0:00:01]} 57. Kf8 {[%clk 0:00:06]}  Qf3+ {[%clk 0:00:01]} 58. Kg8 {[%clk 0:00:05]}  Qb3+ {[%clk 0:00:02]} 59. Kf8 {[%clk 0:00:05]}  Qf3+ {[%clk 0:00:02]} 60. Qf7 {[%clk 0:00:06]}  Qa3+ {[%clk 0:00:02]} 61. Kg8 {[%clk 0:00:06]}  Qa1 {[%clk 0:00:01]} 62. Qh7# {[%clk 0:00:06]} 1-0


[Site "https://www.chess.com"]

[Event "Titled Tuesday Blitz March 21 Early 2023"]
[White "Drygalov, Sergey"]
[Black "Pakleza, Zbigniew"]
[WhiteFideId "24171743"]
[BlackFideId "1119290"]
[WhiteElo "2533"]
[BlackElo "2410"]
[Result "0-1"]
[Round "09"]
[TimeControl "180+2"]
[Date "2023.03.21"]
[WhiteClock "0:00:02"]
[BlackClock "0:00:03"]

1. d4 {[%clk 0:03:00]}  d6 {[%clk 0:03:00]} 2. e4 {[%clk 0:02:58]}  Nf6 {[%clk 0:02:59]} 3. Nc3 {[%clk 0:02:58]}  c6 {[%clk 0:02:59]} 4. f4 {[%clk 0:02:58]}  Qb6 {[%clk 0:02:59]} 5. a4 {[%clk 0:02:51]}  e5 {[%clk 0:02:53]} 6. Nf3 {[%clk 0:02:44]}  exd4 {[%clk 0:02:50]} 7. a5 {[%clk 0:02:42]}  Qc7 {[%clk 0:02:48]} 8. Nxd4 {[%clk 0:02:41]}  Be7 {[%clk 0:02:38]} 9. Bd3 {[%clk 0:02:31]}  O-O {[%clk 0:02:34]} 10. O-O {[%clk 0:02:30]}  Nbd7 {[%clk 0:02:34]} 11. b4 {[%clk 0:02:20]}  Re8 {[%clk 0:02:31]} 12. Rb1 {[%clk 0:02:03]}  Bf8 {[%clk 0:02:24]} 13. Qf3 {[%clk 0:02:02]}  a6 {[%clk 0:02:21]} 14. Kh1 {[%clk 0:01:51]}  c5 {[%clk 0:02:13]} 15. bxc5 {[%clk 0:01:48]}  Nxc5 {[%clk 0:02:10]} 16. Bd2 {[%clk 0:01:25]}  Qxa5 {[%clk 0:01:42]} 17. e5 {[%clk 0:00:39]}  Nxd3 {[%clk 0:01:22]} 18. exf6 {[%clk 0:00:37]}  Nc5 {[%clk 0:01:17]} 19. f5 {[%clk 0:00:31]}  gxf6 {[%clk 0:00:54]} 20. Nd5 {[%clk 0:00:17]}  Qxd2 {[%clk 0:00:51]} 21. Nxf6+ {[%clk 0:00:17]}  Kh8 {[%clk 0:00:52]} 22. Qh5 {[%clk 0:00:15]}  Qh6 {[%clk 0:00:44]} 23. Qxf7 {[%clk 0:00:15]}  Qg7 {[%clk 0:00:43]} 24. Qxe8 {[%clk 0:00:16]}  Qxf6 {[%clk 0:00:41]} 25. Ne6 {[%clk 0:00:16]}  Bxe6 {[%clk 0:00:37]} 26. Qxa8 {[%clk 0:00:17]}  Bd5 {[%clk 0:00:26]} 27. Rbe1 {[%clk 0:00:17]}  Bc6 {[%clk 0:00:23]} 28. Qc8 {[%clk 0:00:14]}  Ne4 {[%clk 0:00:21]} 29. Rf4 {[%clk 0:00:11]}  d5 {[%clk 0:00:17]} 30. Qe6 {[%clk 0:00:10]}  Bg7 {[%clk 0:00:13]} 31. Qc8+ {[%clk 0:00:08]}  Qf8 {[%clk 0:00:10]} 32. Qxf8+ {[%clk 0:00:07]}  Bxf8 {[%clk 0:00:11]} 33. c4 {[%clk 0:00:07]}  dxc4 {[%clk 0:00:05]} 34. Rfxe4 {[%clk 0:00:07]}  Bxe4 {[%clk 0:00:06]} 35. Rxe4 {[%clk 0:00:07]}  b5 {[%clk 0:00:07]} 36. Re8 {[%clk 0:00:02]}  Kg7 {[%clk 0:00:04]} 37. Ra8 {[%clk 0:00:02]}  c3 {[%clk 0:00:03]} 38. Rxa6 {[%clk 0:00:03]}  Kg8 {[%clk 0:00:04]} 39. Kg1 {[%clk 0:00:02]}  b4 {[%clk 0:00:03]} 40. Kf1 {[%clk 0:00:02]}  c2 {[%clk 0:00:02]} 41. Rc6 {[%clk 0:00:02]}  b3 {[%clk 0:00:03]} 0-1


[Site "https://www.chess.com"]